[Event "16th EWICC 2015"]
[Site "Kutaisi"]
[Date "2015.06.03"]
[Round "10"]
[White "Kostava, Elene"]
[Black "Gognadze, Tsira"]
[Result "1-0"]
[ECO "E21"]
[WhiteElo "1691"]
[BlackElo "1144"]
[Annotator "Robot 11"]
[PlyCount "81"]
[EventDate "2015.??.??"]
[EventCountry "GEO"]
[TimeControl "900+10"]

1. d4 {[%emt 0:00:02]} Nf6 {[%emt 0:00:01]} 2. Nf3 {[%emt 0:00:01]} b6 {[%emt
0:00:01]} 3. c4 {[%emt 0:00:01]} e6 {[%emt 0:00:03]} 4. Nc3 {[%emt 0:00:03]}
Bb7 {[%emt 0:00:06]} 5. Bg5 {[%emt 0:00:05]} Be7 {[%emt 0:00:01]} 6. e3 {[%emt
0:00:01]} O-O {[%emt 0:00:03]} 7. Bd3 {[%emt 0:00:01]} h6 {[%emt 0:00:05]} 8.
Bh4 {[%emt 0:00:02]} d6 {[%emt 0:00:18]} 9. O-O {[%emt 0:00:09]} Nbd7 {[%emt 0:
00:10]} 10. Qe2 {[%emt 0:00:12]} c5 {[%emt 0:00:11]} 11. Rac1 {[%emt 0:00:19]}
Qc7 {[%emt 0:00:45]} 12. Rfd1 {[%emt 0:01:12]} Rfd8 {[%emt 0:00:39]} 13. Bb1 {
[%emt 0:00:46]} Rac8 {[%emt 0:00:57]} 14. Nb5 {[%emt 0:01:50]} Qb8 {[%emt 0:00:
31]} 15. dxc5 {[%emt 0:00:07]} Bxf3 {[%emt 0:01:30]} 16. gxf3 {[%emt 0:00:39]}
dxc5 {[%emt 0:02:24]} 17. Bg3 {[%emt 0:01:42]} Qb7 {[%emt 0:00:01]} 18. Bd6 {
[%emt 0:00:10]} Kf8 {[%emt 0:01:33]} 19. Bxe7+ {[%emt 0:00:15]} Kxe7 {[%emt 0:
00:02]} 20. Nd6 {[%emt 0:00:06]} Qc6 {[%emt 0:00:35]} 21. Nxc8+ {[%emt 0:00:05]
} Rxc8 {[%emt 0:00:25]} 22. Rd2 {[%emt 0:00:22]} Ne5 {[%emt 0:00:57]} 23. e4 {
[%emt 0:00:10]} Ned7 {[%emt 0:02:39]} 24. e5 {[%emt 0:01:09]} Nh5 {[%emt 0:00:
58]} 25. Rcd1 {[%emt 0:00:26]} Rc7 {[%emt 0:01:56]} 26. b3 {[%emt 0:01:47]} Qb7
{[%emt 0:00:18]} 27. Qe3 {[%emt 0:00:35]} Qb8 {[%emt 0:01:30]} 28. f4 {[%emt 0:
00:55]} g6 {[%emt 0:00:36]} 29. Rd6 {[%emt 0:02:30]} Qc8 {[%emt 0:00:06]} 30.
Be4 {[%emt 0:00:22]} f5 {[%emt 0:00:23]} 31. exf6+ {[%emt 0:00:18]} Nhxf6 {
[%emt 0:00:03]} 32. Bxg6 {[%emt 0:00:32]} Nf8 {[%emt 0:00:07]} 33. Bf5 {[%emt
0:00:15]} Kf7 {[%emt 0:00:13]} 34. Bc2 {[%emt 0:00:30]} Qe8 {[%emt 0:00:04]}
35. Qh3 {[%emt 0:00:44]} Kg7 {[%emt 0:00:02]} 36. Qg3+ {[%emt 0:00:02]} Kf7 {
[%emt 0:00:03]} 37. Qh3 {[%emt 0:00:20]} Kg7 {[%emt 0:00:01]} 38. Kh1 {[%emt 0:
00:02]} h5 {[%emt 0:00:25]} 39. Rg1+ {[%emt 0:00:26]} Kh6 {[%emt 0:00:02]} 40.
Qh4 {[%emt 0:00:29]} Ng6 {[%emt 0:00:43]} 41. Rxg6+ {[%emt 0:00:09]} 1-0

[Event "16th EWICC 2015"]
[Site "Kutaisi"]
[Date "2015.06.03"]
[Round "10"]
[White "Melashvili, Nino"]
[Black "Donghvani, Nia"]
[Result "1/2-1/2"]
[ECO "A04"]
[WhiteElo "2173"]
[BlackElo "1444"]
[Annotator "Robot 11"]
[PlyCount "29"]
[EventDate "2015.??.??"]
[EventCountry "GEO"]
[TimeControl "900+10"]

1. Nf3 {[%emt 0:00:01]} Nc6 {[%emt 0:00:11]} 2. d4 {[%emt 0:00:04]} d5 {[%emt
0:00:14]} 3. Bf4 {[%emt 0:00:03]} Nf6 {[%emt 0:00:02]} 4. e3 {[%emt 0:00:08]}
Bg4 {[%emt 0:00:12]} 5. Be2 {[%emt 0:00:02]} e6 {[%emt 0:00:02]} 6. O-O {[%emt
0:00:04]} Bd6 {[%emt 0:00:02]} 7. Ne5 {[%emt 0:00:02]} Bxe2 {[%emt 0:00:07]} 8.
Qxe2 {[%emt 0:00:08]} O-O {[%emt 0:00:03]} 9. Nd2 {[%emt 0:00:07]} Bxe5 {[%emt
0:00:31]} 10. dxe5 {[%emt 0:00:02]} Nd7 {[%emt 0:00:03]} 11. Nf3 {[%emt 0:00:
04]} Nb6 {[%emt 0:00:07]} 12. Rad1 {[%emt 0:00:07]} Qe7 {[%emt 0:00:03]} 13. e4
{[%emt 0:00:29]} dxe4 {[%emt 0:00:04]} 14. Qxe4 {[%emt 0:00:02]} h6 {[%emt 0:
00:15]} 15. c4 {[%emt 0:00:07]} 1/2-1/2

[Event "16th EWICC 2015"]
[Site "Kutaisi"]
[Date "2015.06.03"]
[Round "11"]
[White "Donghvani, Nia"]
[Black "Gevorgyan, Maria"]
[Result "0-1"]
[ECO "C42"]
[WhiteElo "1444"]
[BlackElo "2190"]
[Annotator "Robot 11"]
[PlyCount "52"]
[EventDate "2015.??.??"]
[EventCountry "GEO"]
[TimeControl "900+10"]

1. e4 {[%emt 0:00:01]} e5 {[%emt 0:00:07]} 2. Nf3 {[%emt 0:00:02]} Nf6 {[%emt
0:00:01]} 3. Nxe5 {[%emt 0:00:13]} d6 {[%emt 0:00:01]} 4. Nf3 {[%emt 0:00:03]}
Nxe4 {[%emt 0:00:01]} 5. d4 {[%emt 0:00:02]} d5 {[%emt 0:00:01]} 6. Bd3 {[%emt
0:00:13]} Nc6 {[%emt 0:00:02]} 7. O-O {[%emt 0:00:04]} Bg4 {[%emt 0:00:01]} 8.
c3 {[%emt 0:00:06]} f5 {[%emt 0:00:23]} 9. h3 {[%emt 0:00:12]} Bh5 {[%emt 0:00:
02]} 10. Re1 {[%emt 0:00:07]} Be7 {[%emt 0:00:12]} 11. Nbd2 {[%emt 0:00:01]}
O-O {[%emt 0:00:02]} 12. Qc2 {[%emt 0:00:05]} Bd6 {[%emt 0:00:20]} 13. b3 {
[%emt 0:00:59]} Rf6 14. Nxe4 {[%emt 0:01:17]} fxe4 {[%emt 0:00:15]} 15. Bg5 {
[%emt 0:00:19]} exd3 {[%emt 0:00:21]} 16. Bxf6 {[%emt 0:00:15]} dxc2 {[%emt 0:
00:44]} 17. Bxd8 {[%emt 0:00:02]} Rxd8 {[%emt 0:00:02]} 18. Rac1 {[%emt 0:00:
27]} Bg6 {[%emt 0:00:02]} 19. Ne5 {[%emt 0:00:12]} Nxe5 {[%emt 0:00:03]} 20.
dxe5 {[%emt 0:00:02]} Ba3 {[%emt 0:00:02]} 21. Ra1 {[%emt 0:00:07]} Bb2 {[%emt
0:00:33]} 22. f4 {[%emt 0:00:13]} Bxc3 {[%emt 0:00:09]} 23. e6 {[%emt 0:00:23]}
Bxa1 {[%emt 0:00:06]} 24. Rxa1 {[%emt 0:00:01]} d4 {[%emt 0:00:03]} 25. g4 {
[%emt 0:00:10]} d3 {[%emt 0:00:05]} 26. f5 {[%emt 0:00:10]} d2 {[%emt 0:00:02]}
0-1

[Event "16th EWICC 2015"]
[Site "Kutaisi"]
[Date "2015.06.03"]
[Round "11"]
[White "Dordzhieva, Dinara"]
[Black "Schleining, Zoya"]
[Result "0-1"]
[ECO "A09"]
[WhiteElo "2242"]
[BlackElo "2375"]
[Annotator "Robot 11"]
[PlyCount "68"]
[EventDate "2015.??.??"]
[EventCountry "GEO"]
[TimeControl "900+10"]

1. Nf3 {[%emt 0:00:01]} d5 {[%emt 0:00:01]} 2. c4 {[%emt 0:00:01]} d4 {[%emt 0:
00:03]} 3. b4 {[%emt 0:00:00]} c5 {[%emt 0:00:18]} 4. e3 {[%emt 0:00:06]} dxe3
{[%emt 0:00:08]} 5. fxe3 {[%emt 0:00:02]} cxb4 {[%emt 0:00:02]} 6. d4 {[%emt 0:
00:01]} Nf6 {[%emt 0:00:03]} 7. Bd3 {[%emt 0:00:03]} e6 {[%emt 0:00:22]} 8. O-O
{[%emt 0:00:10]} Nc6 {[%emt 0:00:10]} 9. Bb2 {[%emt 0:00:02]} Be7 {[%emt 0:03:
09]} 10. Nbd2 {[%emt 0:00:02]} O-O {[%emt 0:00:51]} 11. Qe2 {[%emt 0:00:07]}
Qc7 {[%emt 0:00:43]} 12. e4 {[%emt 0:00:47]} e5 {[%emt 0:01:25]} 13. d5 {[%emt
0:00:24]} Bc5+ {[%emt 0:00:13]} 14. Kh1 {[%emt 0:00:01]} Nd4 {[%emt 0:00:29]}
15. Nxd4 {[%emt 0:00:05]} Bxd4 {[%emt 0:00:08]} 16. Bxd4 {[%emt 0:00:12]} exd4
{[%emt 0:00:04]} 17. e5 {[%emt 0:04:01]} Bg4 {[%emt 0:00:14]} 18. Qe1 {[%emt 0:
02:54]} Rae8 {[%emt 0:01:11]} 19. Qh4 {[%emt 0:00:49]} Rxe5 {[%emt 0:00:48]}
20. d6 {[%emt 0:00:56]} Qd7 {[%emt 0:01:57]} 21. Rxf6 {[%emt 0:00:02]} Rh5 {
[%emt 0:00:03]} 22. Qg3 {[%emt 0:01:20]} gxf6 {[%emt 0:00:02]} 23. Ne4 {[%emt
0:00:02]} Qe6 {[%emt 0:00:45]} 24. Qxg4+ {[%emt 0:00:30]} Qxg4 {[%emt 0:00:03]}
25. Nxf6+ {[%emt 0:00:01]} Kg7 {[%emt 0:00:03]} 26. Nxg4 {[%emt 0:00:01]} Rd8 {
[%emt 0:00:05]} 27. a3 {[%emt 0:01:59]} Ra5 {[%emt 0:00:15]} 28. a4 {[%emt 0:
02:14]} Rxd6 {[%emt 0:00:10]} 29. h3 {[%emt 0:00:29]} b3 {[%emt 0:00:33]} 30.
Nf2 {[%emt 0:00:37]} Rb6 {[%emt 0:00:12]} 31. Nd1 {[%emt 0:00:38]} b2 {[%emt 0:
00:11]} 32. Rb1 {[%emt 0:00:10]} Rxa4 {[%emt 0:00:08]} 33. Rxb2 {[%emt 0:00:02]
} Rxb2 {[%emt 0:00:12]} 34. Nxb2 {[%emt 0:00:01]} Ra2 {[%emt 0:00:04]} 0-1

[Event "16th EWICC 2015"]
[Site "Kutaisi"]
[Date "2015.06.03"]
[Round "11"]
[White "Esadze, Tamar"]
[Black "Mikadze, Miranda"]
[Result "0-1"]
[ECO "B17"]
[WhiteElo "1697"]
[BlackElo "2233"]
[Annotator "Robot 11"]
[PlyCount "114"]
[EventDate "2015.??.??"]
[EventCountry "GEO"]
[TimeControl "900+10"]

1. e4 {[%emt 0:00:01]} c6 {[%emt 0:00:05]} 2. d4 d5 3. Nc3 {[%emt 0:00:04]}
dxe4 {[%emt 0:00:17]} 4. Nxe4 {[%emt 0:00:01]} Nd7 {[%emt 0:00:00]} 5. Nf3 {
[%emt 0:00:06]} Ngf6 {[%emt 0:00:00]} 6. Ng3 {[%emt 0:00:27]} b6 {[%emt 0:00:
28]} 7. Bd3 {[%emt 0:00:08]} Bb7 {[%emt 0:00:02]} 8. O-O {[%emt 0:00:10]} e6 {
[%emt 0:00:04]} 9. Bf4 {[%emt 0:00:39]} Nd5 {[%emt 0:00:11]} 10. Bd2 {[%emt 0:
01:06]} Qc7 {[%emt 0:01:40]} 11. c4 {[%emt 0:01:28]} Nf4 {[%emt 0:00:42]} 12.
Bxf4 {[%emt 0:01:12]} Qxf4 {[%emt 0:00:02]} 13. Re1 {[%emt 0:00:18]} Be7 {
[%emt 0:00:30]} 14. Qc2 {[%emt 0:00:55]} g6 {[%emt 0:00:22]} 15. Re4 {[%emt 0:
01:02]} Qc7 {[%emt 0:00:07]} 16. Rae1 {[%emt 0:00:16]} Bf6 {[%emt 0:00:33]} 17.
R4e2 {[%emt 0:01:58]} O-O {[%emt 0:00:41]} 18. Ne4 {[%emt 0:00:17]} Bg7 {[%emt
0:00:01]} 19. b3 {[%emt 0:00:25]} c5 {[%emt 0:00:04]} 20. dxc5 {[%emt 0:00:40]}
Nxc5 {[%emt 0:00:04]} 21. Nxc5 {[%emt 0:00:42]} Qxc5 {[%emt 0:00:00]} 22. Ne5 {
[%emt 0:00:16]} Rad8 {[%emt 0:00:15]} 23. Be4 {[%emt 0:00:36]} Bc8 {[%emt 0:00:
01]} 24. Nc6 {[%emt 0:00:31]} Rd7 {[%emt 0:00:02]} 25. b4 {[%emt 0:00:13]} Qg5
{[%emt 0:00:03]} 26. Rd1 {[%emt 0:00:36]} Rxd1+ {[%emt 0:00:23]} 27. Qxd1 {
[%emt 0:00:02]} a5 {[%emt 0:00:08]} 28. a3 {[%emt 0:00:48]} axb4 {[%emt 0:01:
01]} 29. axb4 {[%emt 0:00:01]} Bb7 {[%emt 0:00:01]} 30. Rd2 {[%emt 0:00:19]}
Bc3 {[%emt 0:00:12]} 31. Rd7 {[%emt 0:01:52]} Bxc6 {[%emt 0:00:54]} 32. Bxc6 {
[%emt 0:00:02]} Bxb4 {[%emt 0:00:01]} 33. h3 {[%emt 0:00:17]} Bc5 {[%emt 0:00:
03]} 34. Bb5 {[%emt 0:00:11]} Qf4 {[%emt 0:00:18]} 35. Qd2 {[%emt 0:00:31]} Qe5
{[%emt 0:00:16]} 36. Rd8 {[%emt 0:00:44]} Rxd8 {[%emt 0:00:01]} 37. Qxd8+ {
[%emt 0:00:01]} Kg7 {[%emt 0:00:01]} 38. Qd2 {[%emt 0:00:14]} h5 {[%emt 0:00:
02]} 39. Bc6 {[%emt 0:00:59]} Bd6 {[%emt 0:00:23]} 40. Kf1 {[%emt 0:00:33]} Qc5
{[%emt 0:00:18]} 41. Bb5 {[%emt 0:00:07]} Be5 {[%emt 0:00:02]} 42. Ke2 {[%emt
0:00:17]} Bd4 {[%emt 0:00:02]} 43. Kf1 {[%emt 0:00:11]} Qe5 {[%emt 0:00:09]}
44. Bc6 {[%emt 0:00:17]} Qc5 {[%emt 0:00:35]} 45. Bb5 {[%emt 0:00:02]} e5 {
[%emt 0:00:01]} 46. f3 {[%emt 0:00:39]} Qa3 {[%emt 0:00:09]} 47. Ke2 {[%emt 0:
00:10]} Qa1 {[%emt 0:00:05]} 48. f4 {[%emt 0:00:13]} Qg1 {[%emt 0:00:16]} 49.
Kd3 {[%emt 0:00:14]} Qf1+ {[%emt 0:00:45]} 50. Ke4 {[%emt 0:00:14]} Bf2 {[%emt
0:00:59]} 51. Kxe5 {[%emt 0:00:10]} Qxg2 {[%emt 0:00:06]} 52. Qd6 {[%emt 0:00:
07]} Qxh3 {[%emt 0:00:39]} 53. Qf6+ Kg8 54. Qd8+ {[%emt 0:00:21]} Kh7 {[%emt 0:
00:02]} 55. Bd7 {[%emt 0:00:07]} Qe3+ {[%emt 0:00:19]} 56. Kd5 {[%emt 0:00:16]}
Qxf4 {[%emt 0:00:13]} 57. Qxb6 {[%emt 0:00:09]} Bxb6 {[%emt 0:00:04]} 0-1

[Event "16th EWICC 2015"]
[Site "Kutaisi"]
[Date "2015.06.03"]
[Round "11"]
[White "Gognadze, Tsira"]
[Black "Jalaghonia, Nino"]
[Result "0-1"]
[ECO "B27"]
[WhiteElo "1144"]
[BlackElo "1865"]
[Annotator "Robot 11"]
[PlyCount "66"]
[EventDate "2015.??.??"]
[EventCountry "GEO"]
[TimeControl "900+10"]

1. e4 {[%emt 0:00:01]} c5 {[%emt 0:00:00]} 2. Nf3 {[%emt 0:00:01]} g6 {[%emt 0:
00:02]} 3. d4 {[%emt 0:00:03]} cxd4 {[%emt 0:00:01]} 4. Nxd4 {[%emt 0:00:01]}
Bg7 {[%emt 0:00:01]} 5. Be3 {[%emt 0:00:02]} Nc6 {[%emt 0:00:02]} 6. Nc3 {
[%emt 0:00:07]} Nf6 {[%emt 0:00:02]} 7. f3 {[%emt 0:00:01]} O-O {[%emt 0:00:10]
} 8. Qd2 {[%emt 0:00:00]} d5 {[%emt 0:00:06]} 9. Nxd5 {[%emt 0:00:56]} Nxd5 {
[%emt 0:00:02]} 10. exd5 {[%emt 0:00:08]} Qxd5 {[%emt 0:00:09]} 11. Nxc6 {
[%emt 0:00:35]} Qxc6 {[%emt 0:00:02]} 12. O-O-O {[%emt 0:00:23]} Be6 {[%emt 0:
00:11]} 13. Kb1 {[%emt 0:00:06]} a5 {[%emt 0:00:40]} 14. Bh6 {[%emt 0:00:31]}
a4 {[%emt 0:00:49]} 15. Bxg7 {[%emt 0:00:17]} Kxg7 {[%emt 0:00:04]} 16. Qd4+ {
[%emt 0:00:44]} f6 {[%emt 0:00:18]} 17. Qb4 {[%emt 0:00:48]} a3 {[%emt 0:00:22]
} 18. b3 {[%emt 0:01:16]} Rf7 {[%emt 0:04:19]} 19. Rd4 Bf5 {[%emt 0:01:17]} 20.
Bc4 {[%emt 0:04:57]} e5 {[%emt 0:06:52]} 21. Rd6 {[%emt 0:01:47]} Qc7 {[%emt 0:
00:01]} 22. g4 {[%emt 0:00:35]} b5 {[%emt 0:00:01]} 23. gxf5 {[%emt 0:01:41]}
bxc4 {[%emt 0:00:01]} 24. fxg6 {[%emt 0:00:52]} hxg6 {[%emt 0:00:02]} 25. Rhd1
{[%emt 0:01:00]} cxb3 {[%emt 0:00:35]} 26. axb3 {[%emt 0:00:54]} a2+ {[%emt 0:
00:53]} 27. Ka1 {[%emt 0:00:01]} Qxc2 {[%emt 0:00:15]} 28. Qc4 {[%emt 0:00:50]}
Qxh2 {[%emt 0:00:59]} 29. b4 {[%emt 0:00:02]} Qg3 {[%emt 0:00:37]} 30. b5 {
[%emt 0:00:23]} Qxf3 {[%emt 0:00:04]} 31. b6 {[%emt 0:00:04]} Qb7 {[%emt 0:00:
13]} 32. Qb5 {[%emt 0:00:06]} Qa6 {[%emt 0:00:29]} 33. Qc5 {[%emt 0:01:02]} Qa5
{[%emt 0:00:28]} 0-1

[Event "16th EWICC 2015"]
[Site "Kutaisi"]
[Date "2015.06.03"]
[Round "11"]
[White "Khurtsidze, Nino"]
[Black "Choladze, Mariam"]
[Result "1-0"]
[ECO "A46"]
[WhiteElo "2451"]
[BlackElo "1989"]
[Annotator "Robot 11"]
[PlyCount "71"]
[EventDate "2015.??.??"]
[EventCountry "GEO"]
[TimeControl "900+10"]

1. Nf3 {[%emt 0:00:01]} Nf6 {[%emt 0:00:02]} 2. d4 {[%emt 0:00:05]} e6 {[%emt
0:00:02]} 3. e3 {[%emt 0:00:01]} b6 {[%emt 0:00:08]} 4. Bd3 {[%emt 0:00:02]}
Bb7 {[%emt 0:00:02]} 5. O-O {[%emt 0:00:02]} d5 {[%emt 0:00:02]} 6. c4 {[%emt
0:00:01]} Bd6 {[%emt 0:00:12]} 7. Nc3 {[%emt 0:00:04]} O-O {[%emt 0:00:10]} 8.
b3 {[%emt 0:00:04]} c5 {[%emt 0:00:34]} 9. Bb2 {[%emt 0:00:07]} Nbd7 {[%emt 0:
00:21]} 10. cxd5 {[%emt 0:00:18]} exd5 {[%emt 0:00:58]} 11. Rc1 {[%emt 0:00:38]
} Re8 {[%emt 0:00:06]} 12. Qc2 {[%emt 0:00:32]} Rc8 {[%emt 0:00:23]} 13. Rfd1 {
[%emt 0:00:06]} Qe7 {[%emt 0:02:10]} 14. Qe2 {[%emt 0:00:56]} Ne4 {[%emt 0:02:
14]} 15. Ba6 {[%emt 0:03:14]} Ndf6 {[%emt 0:03:03]} 16. Bxb7 {[%emt 0:00:45]}
Qxb7 {[%emt 0:00:02]} 17. dxc5 {[%emt 0:00:12]} bxc5 {[%emt 0:00:32]} 18. Nxe4
{[%emt 0:00:49]} Nxe4 {[%emt 0:00:13]} 19. Nd2 {[%emt 0:01:13]} Qb8 {[%emt 0:
04:06]} 20. g3 {[%emt 0:00:45]} Be5 {[%emt 0:02:06]} 21. Nxe4 {[%emt 0:01:16]}
dxe4 {[%emt 0:00:01]} 22. Ba3 {[%emt 0:00:31]} Bd6 {[%emt 0:00:09]} 23. Rd5 {
[%emt 0:00:10]} Red8 {[%emt 0:00:58]} 24. Qc4 {[%emt 0:00:21]} g6 {[%emt 0:00:
14]} 25. Qxe4 {[%emt 0:00:08]} Bf8 {[%emt 0:00:11]} 26. Rxd8 {[%emt 0:00:46]}
Rxd8 {[%emt 0:00:02]} 27. Bxc5 {[%emt 0:00:01]} Rc8 {[%emt 0:00:18]} 28. b4 {
[%emt 0:00:02]} a5 {[%emt 0:00:07]} 29. a3 {[%emt 0:00:02]} Bxc5 {[%emt 0:00:
11]} 30. bxc5 {[%emt 0:00:02]} Qb2 {[%emt 0:00:05]} 31. Qc4 {[%emt 0:00:34]}
Qxa3 {[%emt 0:00:11]} 32. c6 {[%emt 0:00:01]} Qd6 {[%emt 0:00:14]} 33. c7 {
[%emt 0:00:08]} Qe6 {[%emt 0:00:08]} 34. Qb5 {[%emt 0:01:38]} Ra8 {[%emt 0:00:
01]} 35. Qb8+ {[%emt 0:00:10]} Qc8 {[%emt 0:00:02]} 36. Qxa8 {[%emt 0:00:03]}
1-0

[Event "16th EWICC 2015"]
[Site "Kutaisi"]
[Date "2015.06.03"]
[Round "11"]
[White "Kosteniuk, Alexandra"]
[Black "Batsiashvili, Nino"]
[Result "0-1"]
[ECO "C47"]
[WhiteElo "2530"]
[BlackElo "2473"]
[Annotator "Robot 11"]
[PlyCount "124"]
[EventDate "2015.??.??"]
[EventCountry "GEO"]
[TimeControl "900+10"]

1. e4 {[%emt 0:00:01]} e5 {[%emt 0:00:01]} 2. Nf3 {[%emt 0:00:01]} Nc6 {[%emt
0:00:01]} 3. Nc3 {[%emt 0:00:01]} Nf6 {[%emt 0:01:35]} 4. Be2 {[%emt 0:00:02]}
Be7 {[%emt 0:00:15]} 5. O-O {[%emt 0:00:43]} O-O {[%emt 0:00:12]} 6. Re1 {
[%emt 0:00:36]} d6 {[%emt 0:01:16]} 7. h3 {[%emt 0:00:08]} a6 {[%emt 0:00:06]}
8. d4 {[%emt 0:00:04]} exd4 {[%emt 0:00:03]} 9. Nxd4 {[%emt 0:00:01]} Nxd4 {
[%emt 0:00:02]} 10. Qxd4 {[%emt 0:00:02]} c5 {[%emt 0:00:05]} 11. Qd3 {[%emt 0:
00:19]} b5 {[%emt 0:00:04]} 12. Bf3 {[%emt 0:01:16]} Ra7 {[%emt 0:00:01]} 13.
Bg5 {[%emt 0:01:18]} b4 {[%emt 0:01:23]} 14. Nd1 {[%emt 0:01:58]} Nd7 {[%emt 0:
00:27]} 15. Bxe7 {[%emt 0:00:02]} Qxe7 {[%emt 0:00:01]} 16. Bg4 {[%emt 0:00:01]
} Ne5 {[%emt 0:00:34]} 17. Qg3 {[%emt 0:00:01]} Nxg4 {[%emt 0:04:01]} 18. hxg4
{[%emt 0:00:02]} Qe5 {[%emt 0:00:03]} 19. Qxe5 {[%emt 0:00:20]} dxe5 {[%emt 0:
00:01]} 20. Ne3 {[%emt 0:00:01]} Be6 {[%emt 0:00:02]} 21. Red1 {[%emt 0:00:22]}
Rc8 {[%emt 0:00:29]} 22. a3 {[%emt 0:00:53]} a5 {[%emt 0:00:25]} 23. Rd6 {
[%emt 0:00:43]} Kf8 {[%emt 0:00:47]} 24. axb4 {[%emt 0:00:13]} cxb4 {[%emt 0:
00:01]} 25. Rb6 {[%emt 0:00:01]} Rca8 {[%emt 0:00:32]} 26. Rb5 {[%emt 0:00:16]}
f6 {[%emt 0:00:04]} 27. g5 {[%emt 0:00:37]} Bd7 {[%emt 0:00:19]} 28. Rb6 {
[%emt 0:00:17]} Ra6 {[%emt 0:01:01]} 29. Rxa6 {[%emt 0:00:26]} Rxa6 {[%emt 0:
00:00]} 30. gxf6 {[%emt 0:00:01]} gxf6 {[%emt 0:00:02]} 31. Nd5 {[%emt 0:00:01]
} Bc8 {[%emt 0:00:22]} 32. f3 {[%emt 0:01:16]} Bb7 {[%emt 0:00:18]} 33. Kf2 {
[%emt 0:00:05]} Bxd5 {[%emt 0:00:46]} 34. exd5 {[%emt 0:00:01]} Ke7 {[%emt 0:
00:01]} 35. b3 {[%emt 0:04:37]} Kd6 {[%emt 0:00:19]} 36. Rd1 {[%emt 0:00:02]}
Ra7 {[%emt 0:00:37]} 37. Ke3 {[%emt 0:00:56]} Rc7 {[%emt 0:00:02]} 38. Rd2 {
[%emt 0:00:07]} f5 {[%emt 0:00:04]} 39. Re2 {[%emt 0:01:41]} Rc3+ {[%emt 0:00:
40]} 40. Kd2 {[%emt 0:00:03]} Kxd5 {[%emt 0:00:01]} 41. Re1 {[%emt 0:00:02]} e4
{[%emt 0:00:40]} 42. fxe4+ {[%emt 0:00:01]} fxe4 {[%emt 0:00:01]} 43. Rh1 {
[%emt 0:00:05]} Rg3 {[%emt 0:00:07]} 44. Rxh7 {[%emt 0:00:12]} Rxg2+ {[%emt 0:
00:14]} 45. Ke3 {[%emt 0:00:01]} Rg3+ {[%emt 0:00:04]} 46. Kd2 {[%emt 0:00:05]}
Rc3 {[%emt 0:01:58]} 47. Rh5+ {[%emt 0:01:08]} Kd4 {[%emt 0:00:03]} 48. Rxa5 {
[%emt 0:00:01]} Rh3 {[%emt 0:00:08]} 49. Ra8 {[%emt 0:00:57]} e3+ {[%emt 0:00:
08]} 50. Ke2 {[%emt 0:00:37]} Rh2+ {[%emt 0:00:04]} 51. Ke1 {[%emt 0:00:19]}
Rxc2 {[%emt 0:00:09]} 52. Re8 {[%emt 0:00:20]} Kd3 {[%emt 0:00:06]} 53. Rd8+ {
[%emt 0:00:08]} Kc3 {[%emt 0:00:01]} 54. Re8 {[%emt 0:00:02]} Kxb3 {[%emt 0:00:
19]} 55. Rxe3+ {[%emt 0:00:02]} Kb2 {[%emt 0:00:01]} 56. Kd1 {[%emt 0:00:06]}
b3 {[%emt 0:00:01]} 57. Rd3 {[%emt 0:00:05]} Rc6 {[%emt 0:00:07]} 58. Kd2 {
[%emt 0:00:07]} Ka2 {[%emt 0:00:03]} 59. Rd8 {[%emt 0:00:02]} Ra6 {[%emt 0:00:
32]} 60. Kc3 {[%emt 0:00:45]} b2 {[%emt 0:00:03]} 61. Rd2 {[%emt 0:00:02]} Rc6+
{[%emt 0:00:09]} 62. Kb4 {[%emt 0:00:02]} Ka1 {[%emt 0:00:02]} 0-1

[Event "16th EWICC 2015"]
[Site "Kutaisi"]
[Date "2015.06.03"]
[Round "11"]
[White "Tereladze, Sopiko"]
[Black "Ibrahimova, Sabina"]
[Result "1-0"]
[ECO "A04"]
[WhiteElo "2128"]
[BlackElo "2272"]
[Annotator "Robot 11"]
[PlyCount "95"]
[EventDate "2015.??.??"]
[EventCountry "GEO"]
[TimeControl "900+10"]

1. Nf3 {[%emt 0:00:01]} c5 {[%emt 0:00:02]} 2. e3 {[%emt 0:00:13]} g6 {[%emt 0:
00:15]} 3. d4 {[%emt 0:00:18]} cxd4 {[%emt 0:00:08]} 4. exd4 {[%emt 0:00:04]}
Bg7 {[%emt 0:00:10]} 5. Be2 {[%emt 0:00:26]} Nf6 {[%emt 0:00:05]} 6. O-O {
[%emt 0:00:02]} O-O {[%emt 0:00:13]} 7. h3 {[%emt 0:00:50]} d5 {[%emt 0:00:34]}
8. c3 {[%emt 0:00:17]} Nc6 {[%emt 0:00:05]} 9. Re1 {[%emt 0:00:02]} a6 {[%emt
0:01:00]} 10. Nbd2 {[%emt 0:00:18]} Qc7 {[%emt 0:00:36]} 11. Bd3 {[%emt 0:00:
21]} Nh5 {[%emt 0:00:39]} 12. Nf1 {[%emt 0:00:27]} Qd6 {[%emt 0:01:15]} 13. Be3
{[%emt 0:01:04]} Nf4 {[%emt 0:01:00]} 14. Bc2 {[%emt 0:00:25]} f6 {[%emt 0:03:
18]} 15. Bb3 {[%emt 0:01:25]} g5 {[%emt 0:02:17]} 16. Bxf4 {[%emt 0:02:33]}
gxf4 {[%emt 0:00:04]} 17. Qd3 {[%emt 0:00:00]} Bh6 {[%emt 0:01:59]} 18. N1h2 {
[%emt 0:00:37]} Rf7 {[%emt 0:01:20]} 19. Ng4 {[%emt 0:00:02]} Bf8 {[%emt 0:00:
03]} 20. Bc2 {[%emt 0:00:32]} Bxg4 {[%emt 0:02:43]} 21. hxg4 {[%emt 0:00:02]}
e5 {[%emt 0:00:13]} 22. dxe5 {[%emt 0:00:41]} fxe5 {[%emt 0:00:01]} 23. Rad1 {
[%emt 0:00:51]} e4 {[%emt 0:00:23]} 24. Qxd5 {[%emt 0:02:29]} Qxd5 {[%emt 0:00:
15]} 25. Rxd5 {[%emt 0:00:02]} exf3 {[%emt 0:00:02]} 26. gxf3 {[%emt 0:00:01]}
Re7 {[%emt 0:00:20]} 27. Red1 {[%emt 0:00:13]} Rae8 {[%emt 0:00:10]} 28. Rf5 {
[%emt 0:00:57]} Bh6 {[%emt 0:00:13]} 29. Rd6 {[%emt 0:00:30]} Bg7 {[%emt 0:00:
05]} 30. Rh5 {[%emt 0:00:39]} Be5 {[%emt 0:00:06]} 31. Rdh6 {[%emt 0:00:13]}
Rg7 {[%emt 0:00:21]} 32. Bxh7+ {[%emt 0:00:03]} Kf8 {[%emt 0:00:03]} 33. Be4 {
[%emt 0:00:16]} Rd7 {[%emt 0:00:14]} 34. Kg2 {[%emt 0:00:31]} Rc7 {[%emt 0:00:
11]} 35. Rf5+ {[%emt 0:00:24]} Ke7 {[%emt 0:00:07]} 36. Bxc6 {[%emt 0:00:09]}
Bg7 {[%emt 0:00:12]} 37. Rh7 {[%emt 0:00:04]} Rxc6 {[%emt 0:00:12]} 38. Rxg7+ {
[%emt 0:00:02]} Kd6 {[%emt 0:00:01]} 39. Rg6+ {[%emt 0:00:03]} Kc7 {[%emt 0:00:
04]} 40. Rxc6+ {[%emt 0:00:04]} bxc6 {[%emt 0:00:03]} 41. Rxf4 {[%emt 0:00:03]}
Re2 {[%emt 0:00:02]} 42. g5 {[%emt 0:00:02]} Rxb2 {[%emt 0:00:02]} 43. g6 {
[%emt 0:00:01]} Rb8 {[%emt 0:00:12]} 44. Rf7+ {[%emt 0:00:04]} Kd6 {[%emt 0:00:
03]} 45. f4 {[%emt 0:00:01]} Ke6 {[%emt 0:00:30]} 46. f5+ {[%emt 0:00:04]} Ke5
{[%emt 0:00:01]} 47. g7 {[%emt 0:00:03]} Rg8 {[%emt 0:00:04]} 48. f6 {[%emt 0:
00:02]} 1-0